[Event "Presidents Day GM-Norm 2024"]
[Site "Santa Clara"]
[Date "2024.02.17"]
[Round "3.3"]
[White "Harsha Bharathakoti"]
[Black "Wang, Isaac"]
[Result "1/2-1/2"]
[ECO "E33"]
[WhiteElo "2565"]
[BlackElo "2316"]
[Annotator "TA"]
[PlyCount "53"]
[EventDate "2024.02.13"]
[EventType "tourn"]
[EventCountry "USA"]
[SourceTitle "playchess.com"]
[Source "ChessBase"]
[SourceQuality "1"]
[TimeControl "5400+30"]

{[%evp 16,53,29,28,28,24,33,35,35,0,13,0,13,0,0,0,-16,-7,0,0,0,0,16,7,15,36,12,24,25,13,93,79,106,90,86,24,24,28,66,54]} 1. d4 {[%emt 0:01:32]} Nf6 {[%emt 0:00:24]} 2. c4 {[%emt 0:03:19]} e6 {[%emt 0:00:06]} 3. Nc3 {[%emt 0:00:27]} Bb4 {[%emt 0:00:14]} 4. Qc2 {[%emt 0:04:15]} Nc6 {[%emt 0:00:39]} 5. Nf3 {[%emt 0:00:14]} d6 {[%emt 0:00:51]} 6. Bd2 {[%emt 0:04:53]} O-O {[%emt 0:02:03]} 7. a3 {[%emt 0:01:14]} Bxc3 {[%emt 0:00:10]} 8. Bxc3 {[%emt 0:00:04]} Re8 {[%emt 0:03:31]} 9. Rd1 {[%emt 0:19:41]} Qe7 {[%emt 0:04:02]} 10. e3 {[%emt 0:02:32]} e5 {[%emt 0:01:54]} 11. dxe5 {[%emt 0:11:55]} dxe5 {[%emt 0:02:48]} 12. Be2 {[%emt 0:08:01]} a5 {[%emt 0:01:29]} 13. O-O {[%emt 0:00:08]} Bg4 {[%emt 0:02:04]} 14. Rfe1 {[%emt 0:06:52]} a4 {[%emt 0:05:13]} 15. Nd2 {[%emt 0:03:26]} Bxe2 {[%emt 0:04:20]} 16. Rxe2 {[%emt 0:00:03]} Red8 {[%emt 0:01:25]} 17. Ree1 {[%emt 0:00:32]} Qe6 {[%emt 0:02:21]} 18. f4 {[%emt 0:11:34]} exf4 {[%emt 0:16:38]} 19. exf4 {[%emt 0:00:12]} Qg4 {[%emt 0:01:32]} 20. Bxf6 {[%emt 0:03:06]} gxf6 {[%emt 0:00:11]} 21. Ne4 {[%emt 0:00:52][%cal Bd2e4,Be4g3,Bg3f5][%mdl 32]} Kg7 {[%emt 0:06:12]} 22. Ng3 {[%emt 0:05:47]} Kh8 {[%emt 0:03:48]} (22... Rxd1 $11 {remains equal.} 23. Qxd1 (23. Rxd1 Ra5 $14) 23... Qxd1 24. Rxd1 Ra6) 23. Rd5 $16 {[%emt 0:01:45]} Re8 {[%emt 0:07:51]} 24. Rxe8+ {[%emt 0:02:02]} Rxe8 {[%emt 0:00:06]} 25. Qf5 {[%emt 0:01:12]} ({Much worse is} 25. Qxa4 $6 Qxf4 26. Qd1 Qe3+ 27. Kf1 Ne5 $11) (25. Rh5 $16 {[%csl Gh5][%cal Rc2h7]} Qg6 26. Qc3 (26. Qxa4 $2 {too greedy.} Qd3 $19)) 25... Qxf5 $11 {[%emt 0:01:52]} 26. Nxf5 {[%emt 0:00:06]} Ne7 {[%emt 0:02:16]} 27. Nxe7 {[%emt 0:00:18] Weighted Error Value: White=0.10 (very precise) /Black=0.14 (very precise) .  Mistake:       	White=1     	Black=1      Inaccurate:     	---       	Black=2      OK:         	White=6     	Black=7      Best:        	White=2     	Black=1} 1/2-1/2

[Event "Presidents Day GM-Norm 2024"]
[Site "Santa Clara"]
[Date "2024.02.17"]
[Round "3.4"]
[White "Jiang, Lucas"]
[Black "Atwell, Rose"]
[Result "1-0"]
[ECO "C01"]
[WhiteElo "2258"]
[BlackElo "2104"]
[Annotator "RC"]
[PlyCount "111"]
[EventDate "2024.02.13"]
[EventType "tourn"]
[EventCountry "USA"]
[SourceTitle "playchess.com"]
[Source "ChessBase"]
[SourceQuality "1"]
[TimeControl "5400+30"]

1. e4 {[%emt 0:00:02]} e5 {[%emt 0:00:05]} 2. Nf3 {[%emt 0:00:06]} Nf6 {[%emt 0:00:04]} 3. Nxe5 {[%emt 0:00:10]} d6 {[%emt 0:00:03]} 4. Nf3 {[%emt 0:00:13]} Nxe4 {[%emt 0:00:05]} 5. d3 {[%emt 0:03:29]} Nf6 {[%emt 0:00:07]} 6. d4 {[%emt 0:00:05]} d5 {[%emt 0:00:08]} 7. Bd3 {[%emt 0:00:08]} Bd6 {[%emt 0:00:13]} 8. Qe2+ {[%emt 0:00:07]} Be6 {[%emt 0:00:24]} 9. Ng5 {[%emt 0:00:40]} Qe7 {[%emt 0:00:46]} 10. Nxe6 {[%emt 0:00:15]} Qxe6 {[%emt 0:00:15]} 11. Nd2 {[%emt 0:09:10]} Qxe2+ {[%emt 0:03:18]} 12. Bxe2 {[%emt 0:02:42]} O-O {[%emt 0:02:11]} 13. O-O {[%emt 0:01:37]} Re8 {[%emt 0:02:06]} 14. Bd3 {[%emt 0:00:42]} Nbd7 {[%emt 0:02:22]} 15. c3 {[%emt 0:02:42]} c6 {[%emt 0:07:10]} 16. b3 {[%emt 0:03:42]} Nf8 {[%emt 0:05:03]} 17. Bb2 {[%emt 0:01:26]} Ne4 {[%emt 0:04:39]} 18. Nxe4 {[%emt 0:04:54]} dxe4 {[%emt 0:00:02]} 19. Bc2 {[%emt 0:06:57]} Re7 {[%emt 0:10:24]} 20. Rae1 {[%emt 0:04:22]} Rae8 {[%emt 0:00:50]} 21. g3 {[%emt 0:04:29]} Nd7 {[%emt 0:04:36]} 22. Re2 {[%emt 0:10:23]} f5 {[%emt 0:04:09]} 23. Rfe1 {[%emt 0:05:52]} Nf6 {[%emt 0:02:26]} 24. f3 {[%emt 0:03:15]} c5 {[%emt 0:06:20]} 25. fxe4 {[%emt 0:12:46]} cxd4 {[%emt 0:02:00]} 26. cxd4 {[%emt 0:01:29]} fxe4 {[%emt 0:01:30]} 27. Kg2 {[%emt 0:03:55]} Bb4 {[%emt 0:06:20]} 28. Rf1 {[%emt 0:04:15]} Rc8 {[%emt 0:05:00]} 29. Rf5 {[%emt 0:02:43]} Bd6 {[%emt 0:07:02]} 30. h3 {[%emt 0:04:05]} Kf7 {[%emt 0:05:58]} 31. g4 {[%emt 0:03:57]} Kg6 {[%emt 0:01:37]} 32. d5 {[%emt 0:02:16]} Rce8 {[%emt 0:01:08]} 33. h4 {[%emt 0:01:10]} h6 {[%emt 0:03:00]} 34. h5+ {[%emt 0:01:24]} Kf7 {[%emt 0:00:20]} 35. Rd2 {[%emt 0:01:38]} e3 {[%emt 0:02:12]} 36. Re2 {[%emt 0:00:04]} Be5 {[%emt 0:00:12]} 37. Ba3 {[%emt 0:00:34]} Rc7 {[%emt 0:00:25]} 38. Bd3 {[%emt 0:00:09]} Bd4 {[%emt 0:02:24]} 39. d6 {[%emt 0:00:58]} Rc3 {[%emt 0:03:12]} 40. Bc4+ {[%emt 0:00:48]} Rxc4 {[%emt 0:00:39]} 41. bxc4 {[%emt 0:00:04]} Ke6 {[%emt 0:00:21]} 42. Kf3 {[%emt 0:00:36]} Rc8 {[%emt 0:00:39]} 43. c5 {[%emt 0:00:57]} b6 {[%emt 0:00:56]} 44. cxb6 {[%emt 0:00:35]} axb6 {[%emt 0:00:19]} 45. Rf4 {[%emt 0:00:30]} Ke5 {[%emt 0:00:43]} 46. Rf5+ {[%emt 0:00:29]} Ke6 {[%emt 0:00:02]} 47. Rf4 {[%emt 0:00:18]} Ke5 {[%emt 0:00:08]} 48. Bb2 {[%emt 0:00:43]} Bxb2 {[%emt 0:00:15]} 49. Rxb2 {[%emt 0:00:03]} Nd5 {[%emt 0:00:10]} 50. d7 {[%emt 0:00:37]} Rd8 {[%emt 0:00:29]} 51. Rf7 {[%emt 0:00:05]} Ke6 {[%emt 0:01:07]} 52. Rxg7 {[%emt 0:00:05]} Rf8+ {[%emt 0:00:05]} 53. Kg3 {[%emt 0:00:34]} Nc3 {[%emt 0:00:35]} 54. Rxb6+ {[%emt 0:01:17]} Kd5 {[%emt 0:00:07]} 55. Re7 {[%emt 0:00:15]} e2 {[%emt 0:01:18]} 56. Rbe6 {[%emt 0:00:14]} 1-0

[Event "Presidents Day GM-Norm 2024"]
[Site "Santa Clara"]
[Date "2024.02.17"]
[Round "3.5"]
[White "Delgado Ramirez, Neuris"]
[Black "Atanasov, Anthony"]
[Result "0-1"]
[ECO "C42"]
[WhiteElo "2517"]
[BlackElo "2384"]
[Annotator "TA"]
[PlyCount "96"]
[EventDate "2024.02.13"]
[EventType "tourn"]
[EventCountry "USA"]
[SourceTitle "playchess.com"]
[Source "ChessBase"]
[SourceQuality "1"]
[TimeControl "5400+30"]

{[%evp 12,96,10,23,12,11,12,9,17,17,22,0,7,4,6,0,0,0,0,0,0,-3,0,0,0,0,0,0,33,-1,22,0,0,0,0,0,0,0,0,0,0,0,9,-37,-34,-90,-41,-32,-13,-12,-31,-97,-87,-142,-153,-145,-133,-238,-228,-284,-282,-309,-310,-326,-314,-745,-505,-924,-653,-1356,-1344,-2740,-2550,-29963,-29962,-1700,-1506,-29989,-29990,-29990,-29972,-29972,-29973,-29972,-29974,-29971,-29973]} 1. e4 {[%emt 0:20:53]} e5 {[%emt 0:00:10]} 2. Nf3 {[%emt 0:00:16]} Nf6 {[%emt 0:00:21]} 3. Nxe5 {[%emt 0:01:20]} d6 {[%emt 0:00:15]} 4. Nf3 {[%emt 0:04:10]} Nxe4 {[%emt 0:00:15]} 5. c4 {[%emt 0:01:07]} Nc6 {[%emt 0:00:18]} 6. Nc3 {[%emt 0:01:12]} Nxc3 {[%emt 0:00:12]} 7. dxc3 {[%emt 0:01:40]} g6 {[%emt 0:00:16]} 8. Bg5 {[%emt 0:00:16]} Be7 {[%emt 0:00:16]} 9. Bh6 {[%emt 0:00:54]} Bf8 {[%emt 0:00:24] The position is equal.} 10. Be3 {[%emt 0:02:43]} Bg7 {[%emt 0:01:04]} 11. Be2 {[%emt 0:01:09]} Bf5 {[%emt 0:07:48]} 12. O-O {[%emt 0:00:58]} O-O {[%emt 0:02:21]} 13. Qd2 {[%emt 0:00:10]} Re8 {[%emt 0:04:50]} 14. Rad1 {[%emt 0:00:43]} a5 {[%emt 0:01:39]} 15. a4 {[%emt 0:01:16]} b6 {[%emt 0:06:14]} 16. Rfe1 {[%emt 0:00:19]} Qc8 {[%emt 0:02:53]} 17. h3 {[%emt 0:04:38]} Ne5 {[%emt 0:06:15]} 18. Nd4 {[%emt 0:01:34]} Be4 {[%emt 0:00:37]} 19. Bh6 {[%emt 0:01:02]} Qd8 {[%emt 0:04:49]} (19... Bxh6 $5 20. Qxh6 Qd8 $11) 20. Bf1 {[%emt 0:01:35]} Bb7 {[%emt 0:01:35]} 21. Bg5 {[%emt 0:02:14]} Bf6 {[%emt 0:10:40]} 22. Bxf6 {[%emt 0:01:11]} Qxf6 {[%emt 0:00:03]} 23. f4 {[%emt 0:00:09]} Nd7 {[%emt 0:07:35]} 24. Nb5 {[%emt 0:00:23]} Rxe1 {[%emt 0:02:00]} 25. Rxe1 {[%emt 0:00:04]} Rc8 {[%emt 0:01:11]} 26. b4 {[%emt 0:00:26] Dodges Nc5} Nf8 {[%emt 0:03:00]} 27. Nd4 {[%emt 0:03:50]} (27. Be2 $11) 27... Ra8 $15 {[%emt 0:02:59]} 28. f5 {[%emt 0:02:03]} axb4 {[%emt 0:02:53]} (28... gxf5 $17 {White must now prevent ...axb4.} 29. b5 Ng6) 29. cxb4 {[%emt 0:00:09]} Rxa4 {[%emt 0:05:02]} 30. Nb5 {[%emt 0:06:08]} Qd8 {[%emt 0:06:51]} 31. Qh6 {[%emt 0:01:23] [#]} (31. f6 $15 Qxf6 (31... Ne6 32. Nc3 $16) 32. Nxc7) 31... Bc6 $1 $17 {[%emt 0:01:10] Black continues to play with concentration.} (31... gxf5 $6 32. Nd4 Be4 (32... Rxb4 33. Nxf5 Ne6 34. Rxe6 Qf8 35. Re8 Qxe8 36. Qg7#) 33. Bd3 $11) 32. Qd2 {[%emt 0:07:56]} (32. Nxc7 $142 Qxc7 33. b5 Bxb5 34. fxg6 Qc5+ (34... Bxc4 35. Re8 Qc5+ 36. Kh1) 35. Kh2 hxg6 (35... Bxc4 36. gxh7+ Kh8 37. Bd3 Bxd3 38. Qxf8+ Kxh7 39. Qxf7+ Kh6 40. Re6+ Kg5 41. Qf6+ Kh5 42. Qh6#) 36. cxb5) 32... Bxb5 {[%emt 0:02:15]} 33. cxb5 {[%emt 0:00:05]} Qf6 {[%emt 0:00:52]} 34. Re8 {[%emt 0:10:23]} (34. Rc1 $17) 34... gxf5 $19 {[%emt 0:01:22]} ({Stronger than} 34... Qxf5 35. Qh6) 35. Rc8 {[%emt 0:00:40] [#]} Ra7 {[%emt 0:00:40]} 36. Qe3 {[%emt 0:00:29]} Kg7 {[%emt 0:01:24]} 37. Qf2 {[%emt 0:04:25]} Ng6 {[%emt 0:01:15]} 38. g3 $2 {[%emt 0:00:42]} (38. Re8) 38... Qe5 {[%emt 0:03:33] aiming for ...Qe6.} 39. Kh2 {[%emt 0:00:43]} (39. Kh1 $142) 39... h5 {[%emt 0:00:27] ...h4 is the strong threat.} 40. h4 {[%emt 0:01:53]} Qe6 {[%emt 0:00:42][%cal Oa7a2]} 41. Qd4+ {[%emt 0:00:39]} Ne5 {[%emt 0:00:02]} 42. Rb8 {[%emt 0:01:00]} Ra2+ {[%emt 0:03:29]} 43. Bg2 {[%emt 0:01:02] [#]} f4 $1 {[%emt 0:03:09] ( -> ...f3)} 44. Kg1 {[%emt 0:05:31]} (44. Ra8 f3) 44... f3 {[%emt 0:01:15] Black mates.} 45. Bf1 {[%emt 0:00:29]} Qg4 {[%emt 0:00:13]} 46. Qf4 {[%emt 0:00:07]} Qxf4 {[%emt 0:00:21]} 47. gxf4 {[%emt 0:00:08]} Ng4 {[%emt 0:00:04]} 48. Re8 {[%emt 0:00:55]} Rh2 {[%emt 0:00:03] Weighted Error Value: White=0.97/Black=0.22 (precise) .  Mistake:       	White=7     	Black=1      Inaccurate:     	White=2     	Black=2      OK:         	White=7     	Black=13     Best:        	White=1     	---        Strong:       	---       	Black=1} 0-1

[Event "Presidents Day GM-Norm 2024"]
[Site "Santa Clara"]
[Date "2024.02.17"]
[Round "4.1"]
[White "Sathish, Pranav"]
[Black "Atanasov, Anthony"]
[Result "0-1"]
[ECO "A06"]
[WhiteElo "2357"]
[BlackElo "2384"]
[Annotator "TA"]
[PlyCount "50"]
[EventDate "2024.02.13"]
[EventType "tourn"]
[EventCountry "USA"]
[SourceTitle "playchess.com"]
[Source "ChessBase"]
[SourceQuality "1"]
[TimeControl "5400+30"]

{[%evp 9,50,14,20,14,17,5,21,-16,-21,-20,-24,-56,0,-109,-100,-86,-90,-102,-107,-105,-104,-97,-69,-134,-116,-147,-146,-131,-121,-364,-305,-412,-400,-516,-544,-770,-758,-1170,-1114,-996,-768,-877,-855]} 1. Nf3 {[%emt 0:00:01]} d5 {[%emt 0:00:17]} 2. b3 {[%emt 0:00:08]} Bf5 {[%emt 0:00:36]} 3. Bb2 {[%emt 0:00:09]} e6 {[%emt 0:00:20]} 4. d3 {[%emt 0:00:55]} Nf6 {[%emt 0:00:19]} 5. Nh4 {[%emt 0:01:03]} h5 {[%emt 0:00:32]} 6. Nxf5 {[%emt 0:02:14]} exf5 {[%emt 0:00:02]} 7. e3 {[%emt 0:00:30]} c5 {[%emt 0:02:23]} 8. Qf3 {[%emt 0:01:40] The position is equal.} g6 {[%emt 0:00:13]} 9. Nd2 {[%emt 0:00:40]} Nc6 {[%emt 0:01:19]} 10. Be2 {[%emt 0:03:14]} Bd6 {[%emt 0:03:37]} (10... Bg7 $15) 11. d4 {[%emt 0:14:44]} (11. O-O $11 {keeps the balance.}) 11... Ne4 $17 {[%emt 1:26:22]} 12. Bb5 {[%emt 1:11:12]} Qa5 {[%emt 0:00:30][%csl LRb5,LRd2]} 13. Qe2 {[%emt 0:00:30] [#] dxc5 would now be deadly.} cxd4 {[%emt 0:00:00]} 14. Bxc6+ {[%emt 0:00:00]} bxc6 {[%emt 0:00:00]} 15. Bxd4 {[%emt 0:01:00]} O-O {[%emt 0:00:00] ...Bb4 is the strong threat.} 16. f3 {[%emt 0:00:00]} (16. a3 $1 $15) 16... c5 {[%emt 0:02:00]} 17. Bb2 {[%emt 0:01:00]} Nc3 $36 {[%emt 0:00:00][%mdl 2048] White is under strong pressure. Black is much more active.} 18. Qd3 {[%emt 0:00:00]} Be5 {[%emt 0:00:00]} ({But not} 18... Nxa2 $6 19. b4 Qa4 (19... Qxb4 20. Rxa2 Rfe8 21. O-O $16) (19... cxb4 20. Nb3 $16) 20. O-O $14 (20. Qxd5 Nxb4 21. Qxd6 Qxc2 $11)) 19. a3 $2 {[%emt 0:00:00] This move loses the game for White.} (19. f4 $17 Bg7 20. O-O) 19... Rfe8 {[%emt 0:00:00]} 20. Kf1 {[%emt 0:00:00]} Rab8 {[%emt 0:00:00][%cal Oc5c4] [#] White must now prevent ...c4!} 21. b4 {[%emt 0:00:00]} c4 {[%emt 0:00:00] Black is clearly winning.} 22. Nxc4 {[%emt 0:00:00]} dxc4 {[%emt 0:00:00]} 23. Qxc4 {[%emt 0:00:00]} Qa4 {[%emt 0:00:00] Strongly threatening ...Rbc8.} 24. Bxc3 {[%emt 0:00:00]} Qxc2 {[%emt 0:00:00]} 25. Qe2 {[%emt 0:00:00]} Qxc3 {[%emt 0:00:00] Weighted Error Value: White=0.86/Black=0.23 (precise) .  Loses game:     	White=1     	---        Mistake:       	White=2     	Black=1      Inaccurate:     	White=5     	---        OK:         	White=4     	Black=9      Best:        	White=1     	Black=1} 0-1

[Event "Presidents Day GM-Norm 2024"]
[Site "Santa Clara"]
[Date "2024.02.18"]
[Round "4.2"]
[White "Atwell, Rose"]
[Black "Delgado Ramirez, Neuris"]
[Result "1/2-1/2"]
[ECO "B13"]
[WhiteElo "2104"]
[BlackElo "2517"]
[Annotator "RC"]
[PlyCount "164"]
[EventDate "2024.02.13"]
[EventType "tourn"]
[EventCountry "USA"]
[SourceTitle "playchess.com"]
[Source "ChessBase"]
[SourceQuality "1"]
[TimeControl "5400+30"]

1. e4 {[%emt 0:00:01]} c6 {[%emt 0:21:44]} 2. d4 {[%emt 0:00:06]} d5 {[%emt 0:00:06]} 3. exd5 {[%emt 0:00:05]} cxd5 {[%emt 0:00:05]} 4. Bd3 {[%emt 0:00:07]} Nc6 {[%emt 0:00:22]} 5. c3 {[%emt 0:00:18]} e6 {[%emt 0:00:09]} 6. Bf4 {[%emt 0:04:57]} Nge7 {[%emt 0:00:32]} 7. Nf3 {[%emt 0:03:21]} Ng6 {[%emt 0:00:22]} 8. Bg3 {[%emt 0:02:42]} Bd6 {[%emt 0:00:24]} 9. Bxd6 {[%emt 0:03:58]} Qxd6 {[%emt 0:00:05]} 10. O-O {[%emt 0:01:22]} Bd7 {[%emt 0:00:31]} 11. Re1 {[%emt 0:06:57]} f6 {[%emt 0:02:08]} 12. Nbd2 {[%emt 0:05:38]} O-O {[%emt 0:03:02]} 13. c4 {[%emt 0:09:27]} Nf4 {[%emt 0:02:23]} 14. Bf1 {[%emt 0:03:45]} dxc4 {[%emt 0:02:34]} 15. Nxc4 {[%emt 0:01:16]} Qc7 {[%emt 0:00:29]} 16. Ne3 {[%emt 0:04:41]} Ne7 {[%emt 0:00:46]} 17. Bc4 {[%emt 0:03:52]} Qd6 {[%emt 0:02:04]} 18. g3 {[%emt 0:06:03]} Nfd5 {[%emt 0:00:16]} 19. Bf1 {[%emt 0:02:43]} Nxe3 {[%emt 0:04:10]} 20. fxe3 {[%emt 0:04:56]} Bc6 {[%emt 0:00:06]} 21. Bc4 {[%emt 0:03:53]} Kh8 {[%emt 0:00:20]} 22. Qe2 {[%emt 0:01:59]} Nf5 {[%emt 0:01:17]} 23. Qf2 {[%emt 0:03:07]} Qe7 {[%emt 0:02:53]} 24. e4 {[%emt 0:03:32]} Nd6 {[%emt 0:00:37]} 25. Bd3 {[%emt 0:00:21]} Qf7 {[%emt 0:09:17]} 26. Qe3 {[%emt 0:01:59]} Qh5 {[%emt 0:00:30]} 27. Rac1 {[%emt 0:01:30]} Qa5 {[%emt 0:15:20]} 28. a3 {[%emt 0:03:33]} Qb6 {[%emt 0:01:47]} 29. b4 {[%emt 0:02:46]} a5 {[%emt 0:01:26]} 30. bxa5 {[%emt 0:02:34]} Rxa5 {[%emt 0:00:35]} 31. Rc3 {[%emt 0:02:47]} Qa7 {[%emt 0:02:09]} 32. e5 {[%emt 0:01:31]} Ne8 {[%emt 0:02:01]} 33. Be4 {[%emt 0:01:39]} Bxe4 {[%emt 0:03:13]} 34. Qxe4 {[%emt 0:00:03]} fxe5 {[%emt 0:00:25]} 35. Nxe5 {[%emt 0:00:37]} Nf6 {[%emt 0:01:58]} 36. Rf1 {[%emt 0:02:56]} Rd5 {[%emt 0:03:51]} 37. Rc7 {[%emt 0:04:55]} Qxd4+ {[%emt 0:02:42]} 38. Qxd4 {[%emt 0:00:03]} Rxd4 {[%emt 0:00:10]} 39. Rxb7 {[%emt 0:00:24]} Rd5 {[%emt 0:01:29]} 40. Ng4 {[%emt 0:01:37]} Kg8 {[%emt 0:01:09]} 41. Nxf6+ {[%emt 0:01:12]} Rxf6 {[%emt 0:00:35]} 42. Rc1 {[%emt 0:00:46]} h5 {[%emt 0:00:08]} 43. Rcc7 {[%emt 0:00:22]} Rg6 {[%emt 0:00:03]} 44. Kg2 {[%emt 0:01:01]} Rd3 {[%emt 0:01:04]} 45. Kh3 {[%emt 0:00:36]} Rxa3 {[%emt 0:00:48]} 46. Rc5 {[%emt 0:00:11]} h4 {[%emt 0:01:24]} 47. Kxh4 {[%emt 0:00:11]} Ra4+ {[%emt 0:00:42]} 48. Kh3 {[%emt 0:00:41]} Rh6+ {[%emt 0:00:19]} 49. Kg2 {[%emt 0:00:02]} Ra2+ {[%emt 0:00:16]} 50. Kf3 {[%emt 0:01:19]} Raxh2 {[%emt 0:01:23]} 51. Rc8+ {[%emt 0:00:35]} Kh7 {[%emt 0:00:08]} 52. Rcc7 {[%emt 0:00:12]} Rg6 {[%emt 0:00:09]} 53. Re7 {[%emt 0:00:32]} Rh5 {[%emt 0:02:17]} 54. Rb6 {[%emt 0:00:15]} Re5 {[%emt 0:00:16]} 55. Rc6 {[%emt 0:00:33]} Kh6 {[%emt 0:00:26]} 56. Rb6 {[%emt 0:00:10]} Rf6+ {[%emt 0:00:31]} 57. Kg2 {[%emt 0:00:10]} Re3 {[%emt 0:00:59]} 58. Rc6 {[%emt 0:00:09]} g6 {[%emt 0:00:44]} 59. Rb6 {[%emt 0:00:15]} Kg5 {[%emt 0:00:54]} 60. Ra6 {[%emt 0:00:10]} Kf5 {[%emt 0:02:18]} 61. Rb6 {[%emt 0:00:17]} Re4 {[%emt 0:01:02]} 62. Reb7 {[%emt 0:00:19]} Rd4 {[%emt 0:00:45]} 63. Rb3 {[%emt 0:00:52]} Ke4 {[%emt 0:00:36]} 64. Re7 {[%emt 0:00:27]} e5 {[%emt 0:00:16]} 65. Rb1 {[%emt 0:00:15]} Rd2+ {[%emt 0:00:30]} 66. Kh3 {[%emt 0:00:23]} Re2 {[%emt 0:00:20]} 67. Kg4 {[%emt 0:00:10]} Rc6 {[%emt 0:00:42]} 68. Rb5 {[%emt 0:00:42]} Kd4 {[%emt 0:00:43]} 69. Rb4+ {[%emt 0:00:21]} Kc3 {[%emt 0:00:19]} 70. Rb1 {[%emt 0:00:22]} Kc2 {[%emt 0:00:56]} 71. Rb4 {[%emt 0:00:10]} Rc3 {[%emt 0:00:09]} 72. Re6 {[%emt 0:01:03]} Ree3 {[%emt 0:00:21]} 73. Rxg6 {[%emt 0:00:33]} Rxg3+ {[%emt 0:00:33]} 74. Kf5 {[%emt 0:00:13]} Rcf3+ {[%emt 0:01:01]} 75. Ke4 {[%emt 0:00:08]} Re3+ {[%emt 0:00:42]} 76. Kf5 {[%emt 0:00:05]} Rxg6 {[%emt 0:01:40]} 77. Kxg6 {[%emt 0:00:03]} e4 {[%emt 0:00:48]} 78. Kf5 {[%emt 0:00:18]} Kd3 {[%emt 0:00:03]} 79. Ke5 {[%emt 0:00:18]} Re2 {[%emt 0:00:44]} 80. Rd4+ {[%emt 0:00:06]} Ke3 {[%emt 0:00:07]} 81. Rxe4+ {[%emt 0:00:03]} Kf3 {[%emt 0:00:04]} 82. Rxe2 {[%emt 0:00:08]} Kxe2 {[%emt 0:00:37]} 1/2-1/2